[Event "December 19 Early 2023"]
[Site "https://www.chess.com"]
[Date "2023.12.19"]
[Round "2"]
[White "Goltsev, Dmitry"]
[Black "Fonseca Manrique, Enrique"]
[Result "1-0"]
[Board "104"]
[TimeControl "180+1"]
[WhiteFideId "24176710"]
[BlackFideId "5114330"]
[WhiteElo "2370"]
[BlackElo "2133"]
[WhiteTeam "RUS"]
[BlackTeam "MEX"]
[WhiteClock "0:00:55"]
[BlackClock "0:00:05"]

1. e4 {[%clk 0:02:58]}  c5 {[%clk 0:03:00]} 2. Nf3 {[%clk 0:02:52]}  e6 {[%clk 0:03:00]} 3. d4 {[%clk 0:02:51]}  cxd4 {[%clk 0:03:01]} 4. Nxd4 {[%clk 0:02:52]}  Nc6 {[%clk 0:03:01]} 5. Nc3 {[%clk 0:02:51]}  a6 {[%clk 0:03:01]} 6. Be2 {[%clk 0:02:51]}  Qc7 {[%clk 0:03:01]} 7. Be3 {[%clk 0:02:51]}  Nf6 {[%clk 0:03:00]} 8. O-O {[%clk 0:02:50]}  d6 {[%clk 0:03:00]} 9. f3 {[%clk 0:02:47]}  Be7 {[%clk 0:02:58]} 10. Qd2 {[%clk 0:02:45]}  O-O {[%clk 0:02:58]} 11. Rac1 {[%clk 0:02:44]}  b5 {[%clk 0:02:56]} 12. a3 {[%clk 0:02:42]}  Bb7 {[%clk 0:02:56]} 13. Rfd1 {[%clk 0:02:40]}  Ne5 {[%clk 0:02:54]} 14. b3 {[%clk 0:02:39]}  d5 {[%clk 0:02:52]} 15. exd5 {[%clk 0:02:38]}  Nxd5 {[%clk 0:02:52]} 16. Nxd5 {[%clk 0:02:33]}  Bxd5 {[%clk 0:02:52]} 17. f4 {[%clk 0:02:14]}  Nd7 {[%clk 0:02:28]} 18. c4 {[%clk 0:02:12]}  bxc4 {[%clk 0:02:26]} 19. Bxc4 {[%clk 0:02:12]}  Qb7 {[%clk 0:01:24]} 20. Bxd5 {[%clk 0:02:03]}  Qxd5 {[%clk 0:01:25]} 21. Nc6 {[%clk 0:02:02]}  Bxa3 {[%clk 0:01:25]} 22. Ra1 {[%clk 0:01:41]}  Bc5 {[%clk 0:01:13]} 23. Bxc5 {[%clk 0:01:18]}  Qxc5+ {[%clk 0:01:06]} 24. Nd4 {[%clk 0:01:16]}  Nf6 {[%clk 0:01:04]} 25. Kh1 {[%clk 0:01:15]}  Rfd8 {[%clk 0:00:56]} 26. Rac1 {[%clk 0:01:14]}  Qb6 {[%clk 0:00:50]} 27. Qb2 {[%clk 0:01:08]}  Nd5 {[%clk 0:00:45]} 28. Ne2 {[%clk 0:01:06]}  Rab8 {[%clk 0:00:39]} 29. Rd3 {[%clk 0:01:02]}  Qf2 {[%clk 0:00:34]} 30. Rf3 {[%clk 0:01:01]}  Qb6 {[%clk 0:00:30]} 31. Ng3 {[%clk 0:01:00]}  a5 {[%clk 0:00:26]} 32. Nh5 {[%clk 0:00:59]}  f6 {[%clk 0:00:25]} 33. Rg3 {[%clk 0:00:59]}  g6 {[%clk 0:00:12]} 34. Nxf6+ {[%clk 0:00:59]}  Kf7 {[%clk 0:00:12]} 35. Nxh7 {[%clk 0:00:58]}  Rh8 {[%clk 0:00:10]} 36. Ng5+ {[%clk 0:00:56]}  Ke8 {[%clk 0:00:05]} 37. Qxh8+ {[%clk 0:00:55]} 1-0

[Event "December 19 Early 2023"]
[Site "https://www.chess.com"]
[Date "2023.12.19"]
[Round "2"]
[White "Timerkhanov, Alexander"]
[Black "Napoli, Nicolo"]
[Result "1-0"]
[Board "107"]
[TimeControl "180+1"]
[WhiteFideId "24177938"]
[BlackFideId "813702"]
[WhiteElo "2278"]
[BlackElo "2306"]
[WhiteTeam "RUS"]
[BlackTeam "ITA"]
[WhiteClock "0:01:11"]
[BlackClock "0:00:03"]

1. d4 {[%clk 0:03:00]}  d5 {[%clk 0:02:56]} 2. Nf3 {[%clk 0:02:58]}  Nf6 {[%clk 0:02:55]} 3. g3 {[%clk 0:02:58]}  e6 {[%clk 0:02:53]} 4. Bg2 {[%clk 0:02:58]}  Bd6 {[%clk 0:02:53]} 5. O-O {[%clk 0:02:58]}  O-O {[%clk 0:02:52]} 6. Bg5 {[%clk 0:02:57]}  b6 {[%clk 0:02:51]} 7. Nbd2 {[%clk 0:02:55]}  h6 {[%clk 0:02:49]} 8. Bxf6 {[%clk 0:02:55]}  Qxf6 {[%clk 0:02:50]} 9. e4 {[%clk 0:02:56]}  Qd8 {[%clk 0:02:38]} 10. c4 {[%clk 0:02:52]}  Bb7 {[%clk 0:02:33]} 11. cxd5 {[%clk 0:02:50]}  exd5 {[%clk 0:02:33]} 12. e5 {[%clk 0:02:51]}  Be7 {[%clk 0:02:33]} 13. Re1 {[%clk 0:02:51]}  Bb4 {[%clk 0:02:17]} 14. a3 {[%clk 0:02:50]}  Bxd2 {[%clk 0:02:17]} 15. Nxd2 {[%clk 0:02:37]}  Qe7 {[%clk 0:02:13]} 16. f4 {[%clk 0:02:34]}  c5 {[%clk 0:02:07]} 17. f5 {[%clk 0:02:26]}  Qg5 {[%clk 0:01:47]} 18. f6 {[%clk 0:02:23]}  gxf6 {[%clk 0:01:37]} 19. Nf3 {[%clk 0:02:23]}  Qg6 {[%clk 0:01:32]} 20. Nh4 {[%clk 0:02:17]}  Qg5 {[%clk 0:01:27]} 21. dxc5 {[%clk 0:02:13]}  fxe5 {[%clk 0:01:10]} 22. Nf3 {[%clk 0:02:13]}  Qg7 {[%clk 0:01:07]} 23. Nxe5 {[%clk 0:02:09]}  bxc5 {[%clk 0:00:57]} 24. Bxd5 {[%clk 0:02:09]}  Bxd5 {[%clk 0:00:58]} 25. Qxd5 {[%clk 0:02:09]}  Na6 {[%clk 0:00:54]} 26. Re4 {[%clk 0:02:08]}  Kh8 {[%clk 0:00:35]} 27. Rf1 {[%clk 0:02:05]}  Nc7 {[%clk 0:00:34]} 28. Qd7 {[%clk 0:02:00]}  f6 {[%clk 0:00:22]} 29. Qxg7+ {[%clk 0:01:31]}  Kxg7 {[%clk 0:00:23]} 30. Nd7 {[%clk 0:01:31]}  Rf7 {[%clk 0:00:23]} 31. Nxc5 {[%clk 0:01:30]}  Rb8 {[%clk 0:00:15]} 32. b4 {[%clk 0:01:29]}  Rb5 {[%clk 0:00:14]} 33. Rg4+ {[%clk 0:01:27]}  Kf8 {[%clk 0:00:13]} 34. Rd1 {[%clk 0:01:28]}  Ke7 {[%clk 0:00:12]} 35. Re4+ {[%clk 0:01:27]}  Kf8 {[%clk 0:00:12]} 36. Rd8+ {[%clk 0:01:26]}  Kg7 {[%clk 0:00:11]} 37. Rg4+ {[%clk 0:01:26]}  Kh7 {[%clk 0:00:11]} 38. Rgg8 {[%clk 0:01:26]}  a6 {[%clk 0:00:09]} 39. g4 {[%clk 0:01:25]}  a5 {[%clk 0:00:09]} 40. Rh8+ {[%clk 0:01:25]}  Kg6 {[%clk 0:00:09]} 41. Nd3 {[%clk 0:01:11]}  axb4 {[%clk 0:00:08]} 42. axb4 {[%clk 0:01:12]}  Kg5 {[%clk 0:00:08]} 43. Kg2 {[%clk 0:01:10]}  Rd5 {[%clk 0:00:07]} 44. Rxd5+ {[%clk 0:01:08]}  Nxd5 {[%clk 0:00:07]} 45. Kg3 {[%clk 0:01:09]}  Kg6 {[%clk 0:00:07]} 46. Rd8 {[%clk 0:01:08]}  Nb6 {[%clk 0:00:06]} 47. Rd6 {[%clk 0:01:09]}  Nc4 {[%clk 0:00:05]} 48. Rc6 {[%clk 0:01:08]}  Ne3 {[%clk 0:00:05]} 49. Ne5+ {[%clk 0:01:08]}  Kg7 {[%clk 0:00:04]} 50. Nxf7 {[%clk 0:01:09]}  Kxf7 {[%clk 0:00:05]} 51. b5 {[%clk 0:01:08]}  Nd5 {[%clk 0:00:05]} 52. b6 {[%clk 0:01:08]}  Ne7 {[%clk 0:00:05]} 53. Rc7 {[%clk 0:01:08]}  Kg6 {[%clk 0:00:05]} 54. b7 {[%clk 0:01:08]}  f5 {[%clk 0:00:06]} 55. Rxe7 {[%clk 0:01:08]}  f4+ {[%clk 0:00:05]} 56. Kxf4 {[%clk 0:01:08]}  h5 {[%clk 0:00:06]} 57. Rc7 {[%clk 0:01:08]}  hxg4 {[%clk 0:00:07]} 58. b8=Q {[%clk 0:01:08]}  g3 {[%clk 0:00:06]} 59. Qb6+ {[%clk 0:01:09]}  Kh5 {[%clk 0:00:03]} 60. Rc5+ {[%clk 0:01:10]}  Kh4 {[%clk 0:00:03]} 61. Qh6# {[%clk 0:01:11]} 1-0

[Event "December 19 Early 2023"]
[Site "https://www.chess.com"]
[Date "2023.12.19"]
[Round "2"]
[White "Vigoa Apecheche, Yanira"]
[Black "Gontcharov, Vladislav"]
[Result "1-0"]
[Board "108"]
[TimeControl "180+1"]
[WhiteFideId "3507041"]
[BlackFideId "4123492"]
[WhiteElo "2276"]
[BlackElo "2420"]
[WhiteTeam "USA"]
[BlackTeam "RUS"]
[WhiteClock "0:00:11"]
[BlackClock "0:00:04"]

1. d4 {[%clk 0:03:00]}  Nf6 {[%clk 0:02:57]} 2. Bg5 {[%clk 0:02:59]}  e6 {[%clk 0:02:56]} 3. Nd2 {[%clk 0:02:56]}  d5 {[%clk 0:02:55]} 4. e3 {[%clk 0:02:55]}  Be7 {[%clk 0:02:42]} 5. Bd3 {[%clk 0:02:55]}  b6 {[%clk 0:02:39]} 6. Qe2 {[%clk 0:02:53]}  a6 {[%clk 0:02:38]} 7. Ngf3 {[%clk 0:02:52]}  Bb7 {[%clk 0:02:37]} 8. Ne5 {[%clk 0:02:50]}  Nbd7 {[%clk 0:02:32]} 9. O-O {[%clk 0:02:47]}  O-O {[%clk 0:02:28]} 10. f4 {[%clk 0:02:45]}  Ne4 {[%clk 0:02:28]} 11. Bxe7 {[%clk 0:02:35]}  Qxe7 {[%clk 0:02:27]} 12. Rad1 {[%clk 0:02:27]}  f5 {[%clk 0:02:25]} 13. Nxd7 {[%clk 0:02:24]}  Qxd7 {[%clk 0:02:24]} 14. Bxe4 {[%clk 0:02:24]}  fxe4 {[%clk 0:02:16]} 15. c3 {[%clk 0:02:13]}  a5 {[%clk 0:02:16]} 16. c4 {[%clk 0:02:10]}  a4 {[%clk 0:02:14]} 17. Qg4 {[%clk 0:02:01]}  g6 {[%clk 0:02:00]} 18. Rf2 {[%clk 0:01:58]}  b5 {[%clk 0:01:53]} 19. c5 {[%clk 0:01:54]}  b4 {[%clk 0:01:52]} 20. Nf1 {[%clk 0:01:46]}  Ba6 {[%clk 0:01:47]} 21. h4 {[%clk 0:01:40]}  Qf7 {[%clk 0:01:30]} 22. Ng3 {[%clk 0:01:39]}  Kh8 {[%clk 0:01:29]} 23. Rdd2 {[%clk 0:01:29]}  h5 {[%clk 0:01:27]} 24. Qg5 {[%clk 0:01:27]}  Kh7 {[%clk 0:01:25]} 25. Kh2 {[%clk 0:01:22]}  Bd3 {[%clk 0:01:22]} 26. Rd1 {[%clk 0:01:19]}  Rg8 {[%clk 0:01:16]} 27. Qe5 {[%clk 0:01:17]}  Raf8 {[%clk 0:01:11]} 28. c6 {[%clk 0:01:11]}  Qe7 {[%clk 0:01:09]} 29. Qg5 {[%clk 0:01:05]}  Qe8 {[%clk 0:01:00]} 30. Rc1 {[%clk 0:01:01]}  Rg7 {[%clk 0:00:44]} 31. Rc5 {[%clk 0:00:55]}  Qe7 {[%clk 0:00:35]} 32. Qxe7 {[%clk 0:00:47]}  Rxe7 {[%clk 0:00:34]} 33. Ra5 {[%clk 0:00:48]}  Rb8 {[%clk 0:00:35]} 34. Rxa4 {[%clk 0:00:47]}  Rb6 {[%clk 0:00:36]} 35. Rd2 {[%clk 0:00:41]}  Re8 {[%clk 0:00:31]} 36. Nh1 {[%clk 0:00:41]}  Reb8 {[%clk 0:00:31]} 37. Nf2 {[%clk 0:00:41]}  Ba6 {[%clk 0:00:29]} 38. Rc2 {[%clk 0:00:35]}  Kg7 {[%clk 0:00:29]} 39. Rc5 {[%clk 0:00:35]}  Kf6 {[%clk 0:00:29]} 40. g4 {[%clk 0:00:34]}  Ke7 {[%clk 0:00:27]} 41. Kg3 {[%clk 0:00:33]}  Kd6 {[%clk 0:00:27]} 42. Raa5 {[%clk 0:00:30]}  Be2 {[%clk 0:00:26]} 43. f5 {[%clk 0:00:26]}  gxf5 {[%clk 0:00:23]} 44. gxf5 {[%clk 0:00:26]}  Rg8+ {[%clk 0:00:23]} 45. Kf4 {[%clk 0:00:26]}  Rxc6 {[%clk 0:00:22]} 46. Rxc6+ {[%clk 0:00:24]}  Kxc6 {[%clk 0:00:22]} 47. Ke5 {[%clk 0:00:21]}  exf5 {[%clk 0:00:20]} 48. Nh3 {[%clk 0:00:21]}  Re8+ {[%clk 0:00:20]} 49. Kf6 {[%clk 0:00:18]}  Rf8+ {[%clk 0:00:19]} 50. Ke5 {[%clk 0:00:18]}  f4 {[%clk 0:00:17]} 51. Nxf4 {[%clk 0:00:18]}  Bg4 {[%clk 0:00:18]} 52. Ra6+ {[%clk 0:00:09]}  Kb5 {[%clk 0:00:18]} 53. Rf6 {[%clk 0:00:09]}  Rxf6 {[%clk 0:00:17]} 54. Kxf6 {[%clk 0:00:09]}  Kc4 {[%clk 0:00:17]} 55. Ke5 {[%clk 0:00:09]}  c5 {[%clk 0:00:17]} 56. dxc5 {[%clk 0:00:09]}  d4 {[%clk 0:00:17]} 57. exd4 {[%clk 0:00:09]}  e3 {[%clk 0:00:17]} 58. c6 {[%clk 0:00:09]}  Kb5 {[%clk 0:00:17]} 59. d5 {[%clk 0:00:09]}  Kb6 {[%clk 0:00:18]} 60. Kd6 {[%clk 0:00:10]}  e2 {[%clk 0:00:17]} 61. Nxe2 {[%clk 0:00:10]}  Bxe2 {[%clk 0:00:17]} 62. a3 {[%clk 0:00:11]}  bxa3 {[%clk 0:00:16]} 63. bxa3 {[%clk 0:00:11]}  Bf3 {[%clk 0:00:14]} 64. Ke5 {[%clk 0:00:10]}  Kc7 {[%clk 0:00:14]} 65. Kd4 {[%clk 0:00:10]}  Be2 {[%clk 0:00:14]} 66. Kc5 {[%clk 0:00:09]}  Bf1 {[%clk 0:00:13]} 67. d6+ {[%clk 0:00:10]}  Kc8 {[%clk 0:00:14]} 68. Kb6 {[%clk 0:00:10]}  Bg2 {[%clk 0:00:09]} 69. a4 {[%clk 0:00:10]}  Bf1 {[%clk 0:00:04]} 70. a5 {[%clk 0:00:11]} 1-0

[Event "December 19 Early 2023"]
[Site "https://www.chess.com"]
[Date "2023.12.19"]
[Round "2"]
[White "Thorfinnsson, Bjorn"]
[Black "Mesa Cruz, Juan Carlos"]
[Result "0-1"]
[Board "109"]
[TimeControl "180+1"]
[WhiteFideId "2300982"]
[BlackFideId "6423400"]
[WhiteElo "2394"]
[BlackElo "2142"]
[WhiteTeam "ISL"]
[BlackTeam "DOM"]
[WhiteClock "0:00:00"]
[BlackClock "0:00:03"]

1. d4 {[%clk 0:03:00]}  Nf6 {[%clk 0:02:59]} 2. Nf3 {[%clk 0:02:57]}  d5 {[%clk 0:02:58]} 3. Bg5 {[%clk 0:02:55]}  c5 {[%clk 0:02:53]} 4. e3 {[%clk 0:02:56]}  cxd4 {[%clk 0:02:50]} 5. exd4 {[%clk 0:02:55]}  Nc6 {[%clk 0:02:49]} 6. c3 {[%clk 0:02:55]}  Ne4 {[%clk 0:02:47]} 7. Bf4 {[%clk 0:02:55]}  Bg4 {[%clk 0:02:46]} 8. Nbd2 {[%clk 0:02:54]}  e6 {[%clk 0:02:44]} 9. Bd3 {[%clk 0:02:50]}  f5 {[%clk 0:02:43]} 10. h3 {[%clk 0:02:42]}  Bh5 {[%clk 0:02:41]} 11. g4 {[%clk 0:02:31]}  Bg6 {[%clk 0:02:22]} 12. gxf5 {[%clk 0:02:27]}  exf5 {[%clk 0:02:22]} 13. Qe2 {[%clk 0:02:17]}  Bd6 {[%clk 0:02:16]} 14. Ne5 {[%clk 0:02:00]}  Bxe5 {[%clk 0:02:04]} 15. dxe5 {[%clk 0:01:58]}  Qh4 {[%clk 0:01:52]} 16. Qe3 {[%clk 0:01:50]}  O-O {[%clk 0:01:29]} 17. Nf3 {[%clk 0:01:44]}  Qe7 {[%clk 0:01:20]} 18. Bb5 {[%clk 0:01:11]}  Bh5 {[%clk 0:01:08]} 19. O-O-O {[%clk 0:01:06]}  Bxf3 {[%clk 0:01:03]} 20. Qxf3 {[%clk 0:01:05]}  Nxe5 {[%clk 0:00:57]} 21. Bxe5 {[%clk 0:00:52]}  Qxe5 {[%clk 0:00:55]} 22. Ba4 {[%clk 0:00:52]}  Rac8 {[%clk 0:00:39]} 23. Rd3 {[%clk 0:00:42]}  d4 {[%clk 0:00:30]} 24. Kc2 {[%clk 0:00:26]}  dxc3 {[%clk 0:00:21]} 25. bxc3 {[%clk 0:00:26]}  Nc5 {[%clk 0:00:18]} 26. Bb3+ {[%clk 0:00:25]}  Kh8 {[%clk 0:00:13]} 27. Rd5 {[%clk 0:00:23]}  Qe4+ {[%clk 0:00:13]} 28. Qxe4 {[%clk 0:00:21]}  fxe4 {[%clk 0:00:14]} 29. Rf1 {[%clk 0:00:18]}  e3 {[%clk 0:00:12]} 30. f3 {[%clk 0:00:19]}  b6 {[%clk 0:00:08]} 31. Re5 {[%clk 0:00:18]}  Rce8 {[%clk 0:00:08]} 32. Rxe8 {[%clk 0:00:17]}  Rxe8 {[%clk 0:00:09]} 33. Bd5 {[%clk 0:00:16]}  g5 {[%clk 0:00:08]} 34. Re1 {[%clk 0:00:14]}  Kg7 {[%clk 0:00:08]} 35. Be4 {[%clk 0:00:15]}  Nxe4 {[%clk 0:00:07]} 36. fxe4 {[%clk 0:00:12]}  Rxe4 {[%clk 0:00:08]} 37. Kd3 {[%clk 0:00:12]}  Re7 {[%clk 0:00:08]} 38. Ke2 {[%clk 0:00:12]}  Kf6 {[%clk 0:00:08]} 39. Rd1 {[%clk 0:00:13]}  h5 {[%clk 0:00:07]} 40. Rd6+ {[%clk 0:00:13]}  Kf5 {[%clk 0:00:07]} 41. Rh6 {[%clk 0:00:12]}  h4 {[%clk 0:00:07]} 42. Rd6 {[%clk 0:00:12]}  Kf4 {[%clk 0:00:07]} 43. Rd4+ {[%clk 0:00:12]}  Kg3 {[%clk 0:00:07]} 44. Rg4+ {[%clk 0:00:13]}  Kxh3 {[%clk 0:00:08]} 45. Rxg5 {[%clk 0:00:14]}  Kh2 {[%clk 0:00:08]} 46. a4 {[%clk 0:00:13]}  h3 {[%clk 0:00:08]} 47. a5 {[%clk 0:00:13]}  bxa5 {[%clk 0:00:08]} 48. Rxa5 {[%clk 0:00:14]}  Kg1 {[%clk 0:00:08]} 49. Rg5+ {[%clk 0:00:14]}  Kh1 {[%clk 0:00:07]} 50. c4 {[%clk 0:00:15]}  h2 {[%clk 0:00:08]} 51. c5 {[%clk 0:00:15]}  a5 {[%clk 0:00:06]} 52. c6 {[%clk 0:00:15]}  a4 {[%clk 0:00:06]} 53. Rc5 {[%clk 0:00:08]}  Kg2 {[%clk 0:00:05]} 54. Rg5+ {[%clk 0:00:09]}  Kh3 {[%clk 0:00:05]} 55. Rh5+ {[%clk 0:00:09]}  Kg3 {[%clk 0:00:06]} 56. Rh6 {[%clk 0:00:08]}  Rg7 {[%clk 0:00:04]} 57. Kxe3 {[%clk 0:00:06]}  Kg2 {[%clk 0:00:04]} 58. c7 {[%clk 0:00:03]}  Rxc7 {[%clk 0:00:03]} 59. Rg6+ {[%clk 0:00:04]}  Kf1 {[%clk 0:00:04]} 60. Rf6+ {[%clk 0:00:04]}  Kg1 {[%clk 0:00:03]} 61. Rg6+ {[%clk 0:00:05]}  Kh1 {[%clk 0:00:04]} 62. Ra6 {[%clk 0:00:04]}  Rg7 {[%clk 0:00:02]} 63. Rxa4 {[%clk 0:00:03]}  Kg2 {[%clk 0:00:02]} 64. Ra2+ {[%clk 0:00:00]}  Kh3 {[%clk 0:00:03]} 0-1

[Event "December 19 Early 2023"]
[Site "https://www.chess.com"]
[Date "2023.12.19"]
[Round "2"]
[White "Nechitaylo, Nikita"]
[Black "Rozman, Levy"]
[Result "0-1"]
[Board "110"]
[TimeControl "180+1"]
[WhiteFideId "34138161"]
[BlackFideId "2039877"]
[WhiteElo "2049"]
[BlackElo "2376"]
[WhiteTeam "UKR"]
[BlackTeam "USA"]
[WhiteClock "0:00:19"]
[BlackClock "0:01:39"]

1. d4 {[%clk 0:03:00]}  g6 {[%clk 0:02:56]} 2. c4 {[%clk 0:02:56]}  Bg7 {[%clk 0:02:57]} 3. Nc3 {[%clk 0:02:52]}  d6 {[%clk 0:02:56]} 4. e4 {[%clk 0:02:52]}  Nc6 {[%clk 0:02:56]} 5. Be3 {[%clk 0:02:50]}  e5 {[%clk 0:02:56]} 6. d5 {[%clk 0:02:51]}  Nd4 {[%clk 0:02:55]} 7. Nge2 {[%clk 0:02:51]}  Nxe2 {[%clk 0:02:49]} 8. Bxe2 {[%clk 0:02:52]}  f5 {[%clk 0:02:48]} 9. exf5 {[%clk 0:02:53]}  gxf5 {[%clk 0:02:48]} 10. Bh5+ {[%clk 0:02:53]}  Kf8 {[%clk 0:02:48]} 11. g3 {[%clk 0:02:52]}  Nf6 {[%clk 0:02:45]} 12. Be2 {[%clk 0:02:52]}  h5 {[%clk 0:02:44]} 13. f4 {[%clk 0:02:47]}  Ng4 {[%clk 0:02:31]} 14. Qd2 {[%clk 0:02:35]}  Nxe3 {[%clk 0:02:15]} 15. Qxe3 {[%clk 0:02:36]}  b6 {[%clk 0:02:14]} 16. Rf1 {[%clk 0:01:53]}  e4 {[%clk 0:02:12]} 17. h3 {[%clk 0:01:45]}  Qf6 {[%clk 0:02:05]} 18. Rb1 {[%clk 0:01:07]}  Bd7 {[%clk 0:02:02]} 19. g4 {[%clk 0:01:03]}  hxg4 {[%clk 0:01:56]} 20. hxg4 {[%clk 0:01:03]}  Rh2 {[%clk 0:01:48]} 21. g5 {[%clk 0:00:49]}  Qd4 {[%clk 0:01:41]} 22. Qg3 {[%clk 0:00:25]}  e3 {[%clk 0:01:37]} 23. Rd1 {[%clk 0:00:24]}  Qxc3+ {[%clk 0:01:37]} 24. bxc3 {[%clk 0:00:24]}  Bxc3+ {[%clk 0:01:37]} 25. Rd2 {[%clk 0:00:18]}  Bxd2+ {[%clk 0:01:38]} 26. Kd1 {[%clk 0:00:19]}  Ba4# {[%clk 0:01:39]} 0-1

[Event "December 19 Early 2023"]
[Site "https://www.chess.com"]
[Date "2023.12.19"]
[Round "2"]
[White "Rendle, Thomas E"]
[Black "Jankowiak, Tomasz"]
[Result "1/2-1/2"]
[Board "114"]
[TimeControl "180+1"]
[WhiteFideId "408760"]
[BlackFideId "1185357"]
[WhiteElo "2424"]
[BlackElo "2056"]
[WhiteTeam "ENG"]
[BlackTeam "POL"]
[WhiteClock "0:00:10"]
[BlackClock "0:00:05"]

1. e4 {[%clk 0:03:00]}  c5 {[%clk 0:02:59]} 2. Nf3 {[%clk 0:03:00]}  Nf6 {[%clk 0:02:59]} 3. e5 {[%clk 0:02:59]}  Nd5 {[%clk 0:02:59]} 4. Nc3 {[%clk 0:03:00]}  e6 {[%clk 0:03:00]} 5. Nxd5 {[%clk 0:02:58]}  exd5 {[%clk 0:03:00]} 6. d4 {[%clk 0:02:57]}  Nc6 {[%clk 0:03:01]} 7. c3 {[%clk 0:02:46]}  d6 {[%clk 0:02:57]} 8. Bb5 {[%clk 0:02:43]}  dxe5 {[%clk 0:02:52]} 9. Nxe5 {[%clk 0:02:38]}  Qb6 {[%clk 0:02:40]} 10. Qa4 {[%clk 0:02:19]}  Bd7 {[%clk 0:02:22]} 11. Nxd7 {[%clk 0:02:15]}  Kxd7 {[%clk 0:02:23]} 12. c4 {[%clk 0:02:03]}  Re8+ {[%clk 0:02:01]} 13. Be3 {[%clk 0:01:44]}  cxd4 {[%clk 0:02:01]} 14. cxd5 {[%clk 0:01:43]}  dxe3 {[%clk 0:02:00]} 15. O-O {[%clk 0:01:37]}  exf2+ {[%clk 0:01:29]} 16. Kh1 {[%clk 0:01:37]}  Bd6 {[%clk 0:01:29]} 17. Rac1 {[%clk 0:01:26]}  Rc8 {[%clk 0:01:11]} 18. dxc6+ {[%clk 0:01:10]}  bxc6 {[%clk 0:00:57]} 19. Qg4+ {[%clk 0:01:10]}  Ke7 {[%clk 0:00:41]} 20. Bc4 {[%clk 0:01:08]}  Qe3 {[%clk 0:00:39]} 21. Qh4+ {[%clk 0:00:26]}  g5 {[%clk 0:00:35]} 22. Qh3 {[%clk 0:00:20]}  Rce8 {[%clk 0:00:12]} 23. Rc3 {[%clk 0:00:16]}  Qxh3 {[%clk 0:00:10]} 24. Rxh3 {[%clk 0:00:10]}  Kd8 {[%clk 0:00:09]} 25. Rxf2 {[%clk 0:00:08]}  Re1+ {[%clk 0:00:07]} 26. Rf1 {[%clk 0:00:08]}  Rxf1+ {[%clk 0:00:07]} 27. Bxf1 {[%clk 0:00:08]}  Re8 {[%clk 0:00:08]} 28. Rxh7 {[%clk 0:00:07]}  Re1 {[%clk 0:00:07]} 29. Rxf7 {[%clk 0:00:07]}  Ke8 {[%clk 0:00:07]} 30. Rf3 {[%clk 0:00:06]}  g4 {[%clk 0:00:05]} 31. Rf5 {[%clk 0:00:06]}  Ke7 {[%clk 0:00:04]} 32. g3 {[%clk 0:00:05]}  Ke6 {[%clk 0:00:04]} 33. Rf2 {[%clk 0:00:05]}  Bc5 {[%clk 0:00:04]} 34. Re2+ {[%clk 0:00:05]}  Rxe2 {[%clk 0:00:05]} 35. Bxe2 {[%clk 0:00:06]}  Kf5 {[%clk 0:00:05]} 36. Bd3+ {[%clk 0:00:06]}  Kg5 {[%clk 0:00:05]} 37. Be4 {[%clk 0:00:06]}  Bd4 {[%clk 0:00:06]} 38. b3 {[%clk 0:00:07]}  c5 {[%clk 0:00:06]} 39. Kg2 {[%clk 0:00:07]}  Bc3 {[%clk 0:00:06]} 40. h4+ {[%clk 0:00:07]}  gxh3+ {[%clk 0:00:06]} 41. Kxh3 {[%clk 0:00:08]}  Bd4 {[%clk 0:00:06]} 42. Kg2 {[%clk 0:00:08]}  a5 {[%clk 0:00:06]} 43. Kf3 {[%clk 0:00:09]}  Bc3 {[%clk 0:00:06]} 44. Bb7 {[%clk 0:00:09]}  Bb4 {[%clk 0:00:05]} 45. Bc8 {[%clk 0:00:10]}  Bc3 {[%clk 0:00:05]} 46. Ke4 {[%clk 0:00:11]}  Be1 {[%clk 0:00:05]} 47. Kd5 {[%clk 0:00:11]}  Bxg3 {[%clk 0:00:04]} 48. Kxc5 {[%clk 0:00:11]}  Be1 {[%clk 0:00:05]} 49. Kb5 {[%clk 0:00:10]}  Kf6 {[%clk 0:00:05]} 50. a3 {[%clk 0:00:09]}  Ke5 {[%clk 0:00:05]} 51. Bb7 {[%clk 0:00:08]}  Kd6 {[%clk 0:00:05]} 52. Kb6 {[%clk 0:00:07]}  Bd2 {[%clk 0:00:04]} 53. Bf3 {[%clk 0:00:07]}  Be1 {[%clk 0:00:04]} 54. Be2 {[%clk 0:00:07]}  Bd2 {[%clk 0:00:04]} 55. Bc4 {[%clk 0:00:07]}  Be1 {[%clk 0:00:04]} 56. Bg8 {[%clk 0:00:08]}  Bd2 {[%clk 0:00:05]} 57. b4 {[%clk 0:00:08]}  axb4 {[%clk 0:00:05]} 58. a4 {[%clk 0:00:09]}  b3 {[%clk 0:00:05]} 59. Bxb3 {[%clk 0:00:08]}  Be1 {[%clk 0:00:05]} 60. Kb5 {[%clk 0:00:08]}  Bd2 {[%clk 0:00:05]} 61. Kb6 {[%clk 0:00:09]}  Be1 {[%clk 0:00:06]} 62. a5 {[%clk 0:00:10]}  Bxa5+ {[%clk 0:00:05]} 1/2-1/2

[Event "December 19 Early 2023"]
[Site "https://www.chess.com"]
[Date "2023.12.19"]
[Round "2"]
[White "Munkhgal, Gombosuren"]
[Black "Khouri, Ahmed Abbas"]
[Result "1-0"]
[Board "117"]
[TimeControl "180+1"]
[WhiteFideId "4901266"]
[BlackFideId "9301518"]
[WhiteElo "2519"]
[BlackElo "1863"]
[WhiteTeam "MGL"]
[BlackTeam "UAE"]
[WhiteClock "0:01:02"]
[BlackClock "0:00:08"]

1. d4 {[%clk 0:03:00]}  Nf6 {[%clk 0:02:49]} 2. Bf4 {[%clk 0:03:01]}  g6 {[%clk 0:02:49]} 3. Nc3 {[%clk 0:03:01]}  Bg7 {[%clk 0:02:50]} 4. e4 {[%clk 0:03:01]}  d6 {[%clk 0:02:50]} 5. Qd2 {[%clk 0:03:01]}  O-O {[%clk 0:02:49]} 6. Bh6 {[%clk 0:03:01]}  e5 {[%clk 0:02:48]} 7. Bxg7 {[%clk 0:02:59]}  Kxg7 {[%clk 0:02:48]} 8. Nge2 {[%clk 0:02:58]}  c5 {[%clk 0:02:39]} 9. d5 {[%clk 0:02:44]}  a6 {[%clk 0:02:26]} 10. a4 {[%clk 0:02:44]}  Nbd7 {[%clk 0:02:26]} 11. f3 {[%clk 0:02:44]}  Rb8 {[%clk 0:02:26]} 12. Ng3 {[%clk 0:02:34]}  Kh8 {[%clk 0:02:14]} 13. h4 {[%clk 0:02:34]}  h5 {[%clk 0:02:14]} 14. Qh6+ {[%clk 0:02:31]}  Nh7 {[%clk 0:02:13]} 15. Be2 {[%clk 0:02:19]}  Qf6 {[%clk 0:02:04]} 16. Qe3 {[%clk 0:02:17]}  Qf4 {[%clk 0:02:03]} 17. Nf1 {[%clk 0:02:15]}  Qxe3 {[%clk 0:02:02]} 18. Nxe3 {[%clk 0:02:16]}  f5 {[%clk 0:01:59]} 19. a5 {[%clk 0:02:05]}  Ndf6 {[%clk 0:01:44]} 20. Nc4 {[%clk 0:02:02]}  Rd8 {[%clk 0:01:35]} 21. Ra3 {[%clk 0:02:01]}  Kg7 {[%clk 0:01:21]} 22. Rb3 {[%clk 0:02:01]}  Kf7 {[%clk 0:01:20]} 23. Rb6 {[%clk 0:01:57]}  Ke7 {[%clk 0:01:20]} 24. O-O {[%clk 0:01:53]}  f4 {[%clk 0:01:18]} 25. Rb1 {[%clk 0:01:48]}  g5 {[%clk 0:01:15]} 26. hxg5 {[%clk 0:01:31]}  Nxg5 {[%clk 0:01:16]} 27. b4 {[%clk 0:01:31]}  cxb4 {[%clk 0:01:00]} 28. R1xb4 {[%clk 0:01:32]}  Ra8 {[%clk 0:01:01]} 29. Kf2 {[%clk 0:01:25]}  h4 {[%clk 0:00:58]} 30. Bf1 {[%clk 0:01:25]}  Nh5 {[%clk 0:00:51]} 31. Rxb7+ {[%clk 0:01:14]}  Bxb7 {[%clk 0:00:50]} 32. Rxb7+ {[%clk 0:01:15]}  Kf6 {[%clk 0:00:47]} 33. Nb6 {[%clk 0:01:15]}  Ng3 {[%clk 0:00:20]} 34. Nca4 {[%clk 0:01:03]}  Nxf1 {[%clk 0:00:20]} 35. Kxf1 {[%clk 0:01:03]}  Rab8 {[%clk 0:00:20]} 36. Rxb8 {[%clk 0:01:03]}  Rxb8 {[%clk 0:00:21]} 37. Nd7+ {[%clk 0:01:03]}  Ke7 {[%clk 0:00:20]} 38. Nxb8 {[%clk 0:01:04]}  h3 {[%clk 0:00:08]} 39. Kg1 {[%clk 0:01:02]} 1-0